[Event "Elegant 1st Division League 2024"]
[Site "Dhaka"]
[Date "2024.07.15"]
[Round "5.24"]
[White "Hossain, Delwar"]
[Black "Sacchu, Afzal Hossain"]
[Result "1/2-1/2"]
[Annotator "RC"]
[ECO "D45"]
[WhiteElo "1959"]
[BlackElo "1981"]
[PlyCount "52"]
[EventDate "2024.07.10"]
[EventType "team-tourn"]
[EventCountry "BAN"]
[SourceTitle "playchess.com"]
[Source "ChessBase"]
[SourceQuality "1"]
[TimeControl "5400+30"]

1. Nf3 {[%emt 0:10:41]} Nf6 {[%emt 0:00:31]} 2. c4 {[%emt 0:00:10]} e6 {[%emt 0:00:35]} 3. Nc3 {[%emt 0:00:08]} d5 {[%emt 0:00:07]} 4. d4 {[%emt 0:00:14]} c6 {[%emt 0:00:48]} 5. e3 {[%emt 0:00:31]} Nbd7 {[%emt 0:00:40]} 6. Bd2 {[%emt 0:00:22]} Bd6 {[%emt 0:00:21]} 7. c5 {[%emt 0:00:42]} Bc7 {[%emt 0:00:12]} 8. b4 {[%emt 0:00:10]} O-O {[%emt 0:00:52]} 9. Be2 {[%emt 0:01:16]} e5 {[%emt 0:00:14]} 10. dxe5 {[%emt 0:00:26]} Nxe5 {[%emt 0:00:02]} 11. Nd4 {[%emt 0:00:28]} Ne4 {[%emt 0:01:34]} 12. O-O {[%emt 0:01:06]} Qf6 {[%emt 0:01:17]} 13. f4 {[%emt 0:00:29]} Ng6 {[%emt 0:03:44]} 14. Nxe4 {[%emt 0:02:19]} dxe4 {[%emt 0:00:01]} 15. Bc3 {[%emt 0:00:21]} Qd8 {[%emt 0:02:56]} 16. Bc4 {[%emt 0:00:46]} Ne7 {[%emt 0:01:08]} 17. Qh5 {[%emt 0:01:31]} Nd5 {[%emt 0:00:57]} 18. Bxd5 {[%emt 0:00:12]} Qxd5 {[%emt 0:01:36]} 19. Qxd5 {[%emt 0:00:23]} cxd5 {[%emt 0:00:02]} 20. b5 {[%emt 0:01:17]} Bd7 {[%emt 0:00:58]} 21. a4 {[%emt 0:00:30]} Rfc8 {[%emt 0:00:50]} 22. Bb4 {[%emt 0:00:13]} Bd8 {[%emt 0:00:20]} 23. Rfc1 {[%emt 0:01:13]} Bf6 {[%emt 0:01:01]} 24. Ra2 {[%emt 0:01:42]} Bxd4 {[%emt 0:00:42]} 25. exd4 {[%emt 0:00:24]} a6 {[%emt 0:00:47]} 26. b6 {[%emt 0:01:43]} f5 {[%emt 0:00:14]} 1/2-1/2

[Event "Elegant 1st Division League 2024"]
[Site "Dhaka"]
[Date "2024.07.16"]
[Round "6.1"]
[White "Hossain, Showkat Pollab"]
[Black "Hossain, Monir"]
[Result "1-0"]
[Annotator "RC"]
[ECO "C00"]
[WhiteElo "1990"]
[BlackElo "1972"]
[PlyCount "69"]
[EventDate "2024.07.10"]
[EventType "team-tourn"]
[EventCountry "BAN"]
[SourceTitle "playchess.com"]
[Source "ChessBase"]
[SourceQuality "1"]
[TimeControl "5400+30"]

1. e4 {[%emt 0:00:03]} c5 {[%emt 0:00:13]} 2. Nf3 {[%emt 0:00:03]} e6 {[%emt 0:00:46]} 3. d3 {[%emt 0:00:02]} Nc6 {[%emt 0:00:14]} 4. g3 {[%emt 0:00:02]} Nf6 {[%emt 0:00:23]} 5. Bg2 {[%emt 0:00:06]} d5 {[%emt 0:00:15]} 6. Nbd2 {[%emt 0:00:01]} Be7 {[%emt 0:01:05]} 7. O-O {[%emt 0:00:01]} Qc7 {[%emt 0:04:37]} 8. Re1 {[%emt 0:00:10]} b6 {[%emt 0:00:59]} 9. h4 {[%emt 0:00:46]} h6 {[%emt 0:00:32]} 10. Nf1 {[%emt 0:03:03]} Bb7 {[%emt 0:00:33]} 11. Qe2 {[%emt 0:03:20]} dxe4 {[%emt 0:06:15]} 12. dxe4 {[%emt 0:00:08]} O-O-O {[%emt 0:00:10]} 13. a3 {[%emt 0:03:47]} Kb8 {[%emt 0:02:41]} 14. c3 {[%emt 0:02:07]} Nd7 {[%emt 0:01:18]} 15. Bf4 {[%emt 0:05:50]} Bd6 {[%emt 0:00:41]} 16. Be3 {[%emt 0:07:57]} Nde5 {[%emt 0:03:42]} 17. Nxe5 {[%emt 0:01:00]} Nxe5 {[%emt 0:00:27]} 18. f4 {[%emt 0:03:19]} Nc6 {[%emt 0:00:56]} 19. e5 {[%emt 0:01:01]} Bf8 {[%emt 0:00:22]} 20. b4 {[%emt 0:00:45]} cxb4 {[%emt 0:03:06]} 21. axb4 {[%emt 0:02:41]} g5 {[%emt 0:01:22]} 22. fxg5 {[%emt 0:01:31]} hxg5 {[%emt 0:00:52]} 23. Bxg5 {[%emt 0:00:37]} Be7 {[%emt 0:00:34]} 24. Bf4 {[%emt 0:02:41]} Rc8 {[%emt 0:00:26]} 25. Ra2 {[%emt 0:00:45]} Rcg8 {[%emt 0:01:53]} 26. Ne3 {[%emt 0:14:11]} Bxh4 {[%emt 0:01:21]} 27. gxh4 {[%emt 0:06:54]} Rxh4 {[%emt 0:00:15]} 28. Qf2 {[%emt 0:02:18]} Rxf4 {[%emt 0:02:05]} 29. Qxf4 {[%emt 0:00:51]} Nxe5 {[%emt 0:00:31]} 30. Kf1 {[%emt 0:02:56]} Qxc3 {[%emt 0:02:01]} 31. Bxb7 {[%emt 0:02:53]} Kxb7 {[%emt 0:00:29]} 32. Qe4+ {[%emt 0:01:01]} Kb8 {[%emt 0:00:56]} 33. Rd1 {[%emt 0:08:36]} f5 {[%emt 0:02:21]} 34. Qf4 {[%emt 0:01:58]} Qc7 {[%emt 0:04:14]} 35. Rc2 {[%emt 0:00:50]} 1-0

[Event "Elegant 1st Division League 2024"]
[Site "Dhaka"]
[Date "2024.07.16"]
[Round "6.2"]
[White "Hossain, Alamgir"]
[Black "Ahmed, Mahtabuddin"]
[Result "0-1"]
[Annotator "RC"]
[ECO "C53"]
[WhiteElo "1974"]
[BlackElo "1974"]
[PlyCount "108"]
[EventDate "2024.07.10"]
[EventType "team-tourn"]
[EventCountry "BAN"]
[SourceTitle "playchess.com"]
[Source "ChessBase"]
[SourceQuality "1"]
[TimeControl "5400+30"]

1. e4 {[%emt 0:02:13]} e5 {[%emt 0:00:02]} 2. Nf3 {[%emt 0:00:31]} Nc6 {[%emt 0:00:11]} 3. Bc4 {[%emt 0:00:38]} Bc5 {[%emt 1:31:47]} 4. c3 {[%emt 0:07:53]} Qe7 {[%emt 0:00:00]} 5. O-O {[%emt 0:02:12]} d6 {[%emt 0:00:00]} 6. d4 {[%emt 0:02:05]} Bb6 {[%emt 0:00:00]} 7. a4 {[%emt 0:08:16]} a5 {[%emt 0:00:00]} 8. Be3 {[%emt 0:01:30]} Ba7 {[%emt 0:00:00]} 9. Bb5 {[%emt 0:09:06]} Bd7 {[%emt 0:00:00]} 10. dxe5 {[%emt 0:06:49]} dxe5 {[%emt 0:00:00]} 11. Bxa7 {[%emt 0:02:46]} Rxa7 {[%emt 0:00:00]} 12. Nbd2 {[%emt 0:02:00]} Nb8 {[%emt 0:00:00]} 13. Qb3 {[%emt 0:06:47]} Nf6 {[%emt 0:00:00]} 14. Rfe1 {[%emt 0:01:41]} O-O {[%emt 0:00:00]} 15. Bxd7 {[%emt 0:01:56]} Nfxd7 {[%emt 0:00:00]} 16. Qb5 {[%emt 0:03:33]} c6 {[%emt 0:00:00]} 17. Qc4 {[%emt 0:02:40]} Nb6 {[%emt 0:00:00]} 18. Qe2 {[%emt 0:01:18]} N8d7 {[%emt 0:00:00]} 19. Qe3 {[%emt 0:06:08]} Raa8 {[%emt 0:00:00]} 20. b3 {[%emt 0:09:18]} Rfd8 {[%emt 0:00:00]} 21. Qe2 {[%emt 0:08:11]} f6 {[%emt 0:00:00]} 22. Nc4 {[%emt 0:01:43]} Nxc4 {[%emt 0:09:30]} 23. Qxc4+ {[%emt 0:00:29]} Qf7 {[%emt 0:00:00]} 24. Nd2 {[%emt 0:02:44]} Qxc4 {[%emt 0:00:00]} 25. Nxc4 {[%emt 0:00:41]} Nc5 {[%emt 0:00:00]} 26. Nxa5 {[%emt 0:04:34]} Rxa5 {[%emt 0:00:00]} 27. b4 {[%emt 0:00:22]} Rxa4 {[%emt 0:00:00]} 28. bxc5 {[%emt 0:00:18]} Rc4 {[%emt 0:00:00]} 29. Ra5 {[%emt 0:02:36]} Rxe4 {[%emt 0:00:00]} 30. Rb1 {[%emt 0:00:24]} Rc4 {[%emt 0:00:00]} 31. g3 {[%emt 0:00:15]} Rd7 {[%emt 0:00:00]} 32. Rb3 {[%emt 0:00:08]} h5 {[%emt 0:00:00]} 33. Kf1 {[%emt 0:00:34]} Kf7 {[%emt 0:00:00]} 34. Ra7 {[%emt 0:01:56]} Rxc5 {[%emt 0:00:00]} 35. Raxb7 {[%emt 0:00:13]} Rxb7 {[%emt 0:00:00]} 36. Rxb7+ {[%emt 0:00:15]} Kg6 {[%emt 0:00:00]} 37. Rb3 {[%emt 0:00:01]} e4 {[%emt 0:00:00]} 38. Ke2 {[%emt 0:00:41]} Kf5 {[%emt 0:00:00]} 39. h4 {[%emt 0:01:11]} Ke5 {[%emt 0:00:00]} 40. Ke3 {[%emt 0:00:40]} Rd5 {[%emt 0:00:00]} 41. c4 {[%emt 0:03:44]} Rd7 {[%emt 0:00:00]} 42. Ra3 {[%emt 0:00:00]} c5 {[%emt 0:00:00]} 43. Rc3 {[%emt 0:00:00]} Rd4 {[%emt 0:00:00]} 44. f3 {[%emt 0:00:29]} exf3 {[%emt 0:00:00]} 45. Kxf3 {[%emt 0:00:01]} Kf5 {[%emt 0:11:30]} 46. Ke2 {[%emt 0:01:17]} Kg4 {[%emt 0:00:00]} 47. Ke1 {[%emt 0:00:12]} f5 {[%emt 0:00:00]} 48. Ke2 {[%emt 0:00:30]} f4 {[%emt 0:00:00]} 49. gxf4 {[%emt 0:00:28]} Rxf4 {[%emt 0:00:00]} 50. Rc1 {[%emt 0:00:08]} Kxh4 {[%emt 0:00:00]} 51. Rg1 {[%emt 0:01:55]} g5 {[%emt 0:00:00]} 52. Rh1+ {[%emt 0:00:00]} Kg4 {[%emt 0:00:00]} 53. Kd3 {[%emt 0:00:00]} h4 {[%emt 0:00:00]} 54. Rg1+ {[%emt 0:00:02]} Kh5 {[%emt 0:04:30]} 0-1

[Event "Elegant 1st Division League 2024"]
[Site "Dhaka"]
[Date "2024.07.16"]
[Round "6.3"]
[White "Shourya Paul"]
[Black "Priyanshu Barua"]
[Result "1-0"]
[Annotator "RC"]
[ECO "B35"]
[WhiteElo "1813"]
[BlackElo "1987"]
[PlyCount "71"]
[EventDate "2024.07.10"]
[EventType "team-tourn"]
[EventCountry "BAN"]
[SourceTitle "playchess.com"]
[Source "ChessBase"]
[SourceQuality "1"]
[TimeControl "5400+30"]

1. e4 {[%emt 0:00:12]} c5 {[%emt 0:00:39]} 2. Nf3 {[%emt 0:00:25]} Nc6 {[%emt 0:00:15]} 3. d4 {[%emt 0:02:38]} cxd4 {[%emt 0:03:03]} 4. Nxd4 {[%emt 0:00:09]} g6 {[%emt 0:02:34]} 5. Nc3 {[%emt 0:00:39]} Bg7 {[%emt 0:02:44]} 6. Be3 {[%emt 0:00:27]} Nf6 {[%emt 0:02:40]} 7. Bc4 {[%emt 0:01:37]} O-O {[%emt 0:03:11]} 8. Bb3 {[%emt 0:00:36]} Ng4 {[%emt 0:03:46]} 9. Qxg4 {[%emt 0:00:41]} Nxd4 {[%emt 0:00:09]} 10. Qd1 {[%emt 0:00:04]} Nxb3 {[%emt 0:03:01]} 11. cxb3 {[%emt 0:00:30]} d6 {[%emt 0:02:51]} 12. Qd2 {[%emt 0:00:13]} Be6 {[%emt 0:01:03]} 13. O-O-O {[%emt 0:01:03]} a5 {[%emt 0:08:49]} 14. Kb1 {[%emt 0:12:25]} b5 {[%emt 0:03:45]} 15. Bd4 {[%emt 0:18:49]} a4 {[%emt 0:13:10]} 16. Bxg7 {[%emt 0:09:15]} Kxg7 {[%emt 0:00:09]} 17. Nxb5 {[%emt 0:03:19]} axb3 {[%emt 0:06:08]} 18. a3 {[%emt 0:00:06]} Ra4 {[%emt 0:02:44]} 19. Nc3 {[%emt 0:06:21]} Rc4 {[%emt 0:01:32]} 20. h4 {[%emt 0:00:17]} f6 {[%emt 0:08:35]} 21. f3 {[%emt 0:15:34]} Qa5 {[%emt 0:00:24]} 22. g4 {[%emt 0:00:13]} Rfc8 {[%emt 0:00:16]} 23. Rc1 {[%emt 0:00:16]} R8c5 {[%emt 0:03:57]} 24. g5 {[%emt 0:03:16]} d5 {[%emt 0:03:01]} 25. h5 {[%emt 0:14:54]} d4 {[%emt 0:03:20]} 26. hxg6 {[%emt 0:00:25]} Rxg5 {[%emt 0:07:35]} 27. Rxh7+ {[%emt 0:02:47]} Kf8 {[%emt 0:00:45]} 28. Rh8+ {[%emt 0:00:59]} Bg8 {[%emt 0:00:54]} 29. Qh2 {[%emt 0:01:53]} Rxg6 {[%emt 0:01:52]} 30. Qb8+ {[%emt 0:00:15]} Kf7 {[%emt 0:00:08]} 31. Qxb3 {[%emt 0:00:01]} Kf8 {[%emt 0:01:26]} 32. Qxc4 {[%emt 0:00:26]} dxc3 {[%emt 0:00:06]} 33. Qxc3 {[%emt 0:01:10]} Qb6 {[%emt 0:00:26]} 34. Qc8+ {[%emt 0:00:38]} Kf7 {[%emt 0:00:10]} 35. Qc4+ {[%emt 0:00:08]} Kf8 {[%emt 0:00:06]} 36. Qd5 {[%emt 0:00:53]} 1-0

[Event "Elegant 1st Division League 2024"]
[Site "Dhaka"]
[Date "2024.07.16"]
[Round "6.4"]
[White "Hossain, Delwar"]
[Black "Shankhodip De"]
[Result "0-1"]
[Annotator "RC"]
[ECO "A05"]
[WhiteElo "1959"]
[BlackElo "1942"]
[PlyCount "40"]
[EventDate "2024.07.10"]
[EventType "team-tourn"]
[EventCountry "BAN"]
[SourceTitle "playchess.com"]
[Source "ChessBase"]
[SourceQuality "1"]
[TimeControl "5400+30"]

1. e4 {[%emt 0:01:47]} c5 {[%emt 0:00:17]} 2. Nf3 {[%emt 0:00:07]} d6 {[%emt 0:00:33]} 3. h3 {[%emt 0:00:58]} Nf6 {[%emt 0:01:36]} 4. d3 {[%emt 0:00:08]} g6 {[%emt 0:00:09]} 5. g3 {[%emt 0:00:07]} Bg7 {[%emt 0:00:07]} 6. Bg2 {[%emt 0:00:08]} O-O {[%emt 0:01:03]} 7. O-O {[%emt 0:00:05]} Nc6 {[%emt 0:00:34]} 8. c3 {[%emt 0:00:11]} e5 {[%emt 0:03:05]} 9. c4 {[%emt 1:31:29]} Ne8 {[%emt 0:06:48]} 10. Nc3 {[%emt 0:00:00]} Nc7 {[%emt 0:01:30]} 11. a4 {[%emt 0:00:00]} Ne6 {[%emt 0:00:30]} 12. Be3 {[%emt 0:00:00]} f5 {[%emt 0:00:23]} 13. exf5 {[%emt 0:00:00]} gxf5 {[%emt 0:00:04]} 14. Nd5 {[%emt 0:00:00]} f4 {[%emt 0:02:16]} 15. Bd2 {[%emt 0:00:00]} Ncd4 {[%emt 0:09:37]} 16. Nxd4 {[%emt 0:00:00]} Nxd4 {[%emt 0:03:51]} 17. gxf4 {[%emt 0:00:00]} Qh4 {[%emt 0:00:27]} 18. fxe5 {[%emt 0:00:00]} Bxh3 {[%emt 0:01:13]} 19. f4 {[%emt 0:00:00]} Bg4 {[%emt 0:03:59]} 20. Rf3 {[%emt 0:00:00]} Nxf3+ {[%emt 0:00:29]} 0-1

[Event "Elegant 1st Division League 2024"]
[Site "Dhaka"]
[Date "2024.07.16"]
[Round "6.5"]
[White "Choudhury, Zahid"]
[Black "Miraj Uddin, Ahmed"]
[Result "0-1"]
[Annotator "NA RC"]
[ECO "B15"]
[WhiteElo "1838"]
[BlackElo "1827"]
[PlyCount "75"]
[EventDate "2024.07.10"]
[EventType "team-tourn"]
[EventCountry "BAN"]
[SourceTitle "playchess.com"]
[Source "ChessBase"]
[SourceQuality "1"]
[TimeControl "5400+30"]

1. e4 {[%emt 0:04:49]} e6 {[%emt 0:02:25]} 2. d4 {[%emt 0:07:28]} d5 {[%emt 0:00:10]} 3. Nc3 {[%emt 0:00:04]} c6 {[%emt 0:00:14]} 4. Nf3 {[%emt 0:05:05]} f5 {[%emt 0:00:18]} 5. e5 {[%emt 0:05:11]} Bb4 {[%emt 0:00:52]} 6. a3 {[%emt 0:01:20] B15: Caro-Kann: 3 Nc3: 3...g6 and 3...dxe4 4 Nxe4 Nf6 5 Nxf6+ exf6.} Ba5 {[%emt 0:00:36]} 7. b4 {[%emt 0:02:37]} Bc7 {[%emt 0:00:19]} 8. Bd3 {[%emt 0:04:31]} Ne7 {[%emt 0:00:03]} 9. h4 {[%emt 0:02:33]} a5 {[%emt 0:00:42]} 10. b5 {[%emt 0:02:17]} c5 {[%emt 0:05:44]} 11. dxc5 {[%emt 0:00:51]} Nd7 {[%emt 0:00:07]} 12. Na4 {[%emt 0:18:45]} Nxe5 {[%emt 0:02:23]} 13. Nxe5 {[%emt 0:03:05]} Bxe5 {[%emt 0:00:03]} 14. Rb1 {[%emt 0:00:50]} O-O {[%emt 0:01:48]} 15. Qe2 {[%emt 0:02:59]} Bc7 {[%emt 0:00:35]} 16. Bg5 {[%emt 0:05:34]} e5 {[%emt 0:03:38]} 17. b6 {[%emt 0:02:17]} Bb8 {[%emt 0:02:56]} 18. Bb5 {[%emt 0:00:38]} Bd7 {[%emt 0:04:38]} 19. Nc3 {[%emt 0:02:51]} Bc6 {[%emt 0:00:07]} 20. Bxc6 {[%emt 0:01:05]} bxc6 {[%emt 0:00:02]} 21. Na4 {[%emt 0:01:29]} Qd7 {[%emt 0:02:27]} 22. h5 {[%emt 0:01:36]} h6 {[%emt 0:00:25]} 23. Bd2 {[%emt 0:02:00]} d4 {[%emt 0:01:01]} 24. Qc4+ {[%emt 0:01:33]} Kh7 {[%emt 0:01:03]} 25. c3 {[%emt 0:01:00]} d3 {[%emt 0:00:37]} 26. Rh4 {[%emt 0:03:14]} e4 {[%emt 0:04:27]} 27. Be3 {[%emt 0:02:43]} (27. Kd1 $17 {ist eine bessere Verteidigung.}) 27... Nd5 {[%emt 0:01:07]} 28. Qd4 {[%emt 0:02:37]} Qe7 {[%emt 0:05:22]} 29. Rh3 $19 {[%emt 0:00:44]} f4 {[%emt 0:05:24]} 30. Bd2 {[%emt 0:00:16]} Kh8 {[%emt 0:02:14]} 31. c4 {[%emt 0:06:21]} Nf6 {[%emt 0:00:21]} 32. Qc3 {[%emt 0:01:46]} Be5 {[%emt 0:01:19]} 33. Qc1 {[%emt 0:00:01]} Ng4 {[%emt 0:01:05]} 34. Bc3 {[%emt 0:03:11]} Rad8 {[%emt 0:00:51]} 35. Kf1 {[%emt 0:01:47]} e3 {[%emt 0:02:13]} 36. Bxa5 {[%emt 0:00:45]} Nxf2 {[%emt 0:04:13]} 37. Rf3 {[%emt 0:01:46]} Qh4 {[%emt 0:00:30]} 38. Ra1 {[%emt 0:01:40]} 0-1

[Event "Elegant 1st Division League 2024"]
[Site "Dhaka"]
[Date "2024.07.16"]
[Round "6.6"]
[White "Shatadru Shovan, Dey"]
[Black "Mirza Arifur, Rahman"]
[Result "1-0"]
[Annotator "NA RC"]
[ECO "E18"]
[WhiteElo "1879"]
[BlackElo "1823"]
[PlyCount "69"]
[EventDate "2024.07.10"]
[EventType "team-tourn"]
[EventCountry "BAN"]
[SourceTitle "playchess.com"]
[Source "ChessBase"]
[SourceQuality "1"]
[TimeControl "5400+30"]

1. d4 {[%emt 0:00:08]} Nf6 {[%emt 0:00:25]} 2. c4 {[%emt 0:00:15]} e6 {[%emt 0:01:48]} 3. Nc3 {[%emt 0:00:21]} d5 {[%emt 0:00:10]} 4. Nf3 {[%emt 0:00:56]} Be7 {[%emt 0:01:13]} 5. g3 {[%emt 0:00:17]} Nbd7 {[%emt 0:00:20]} 6. Bg2 {[%emt 0:00:12]} O-O {[%emt 0:01:35]} 7. O-O {[%emt 0:05:09]} b6 {[%emt 0:01:43]} 8. cxd5 {[%emt 0:05:13]} exd5 {[%emt 0:00:08]} 9. Ne5 {[%emt 0:02:34]} Bb7 {[%emt 0:00:20]} 10. Qa4 {[%emt 0:06:38]} Nb8 {[%emt 0:02:25]} 11. Bg5 {[%emt 0:03:03] E18: Queen's Indian: Old Main Line (4 g3 Bb7 5 Bg2 Be7 6 0-0 0-0 7 Nc3).} c6 {[%emt 0:03:58]} 12. Rfe1 {[%emt 0:02:51]} Ne4 {[%emt 0:06:51]} 13. Bf4 {[%emt 0:14:09]} f6 {[%emt 0:03:24]} 14. Nd3 {[%emt 0:00:44]} Nxc3 {[%emt 0:10:25]} 15. bxc3 {[%emt 0:00:08]} Bd6 {[%emt 0:00:10]} 16. c4 {[%emt 0:00:22]} dxc4 {[%emt 0:03:18]} 17. Qxc4+ {[%emt 0:00:20]} Kh8 {[%emt 0:00:10]} 18. Rac1 {[%emt 0:00:58]} Qd7 {[%emt 0:00:18]} 19. Bxd6 {[%emt 0:17:17]} Qxd6 {[%emt 0:00:16]} 20. Nb4 {[%emt 0:00:03]} Rc8 {[%emt 0:01:05]} 21. Rc2 {[%emt 0:10:24]} a5 {[%emt 0:00:39]} 22. Nd3 {[%emt 0:13:00]} Nd7 {[%emt 0:04:34]} 23. Rec1 {[%emt 0:02:48]} b5 {[%emt 0:10:10]} 24. Qc3 $18 {[%emt 0:00:12]} b4 {[%emt 0:00:02]} 25. Qb2 {[%emt 0:00:27]} Rc7 {[%emt 0:00:10]} 26. Nc5 {[%emt 0:01:04]} Nxc5 {[%emt 0:00:18]} 27. Rxc5 {[%emt 0:00:06]} h6 {[%emt 0:04:20]} 28. h4 {[%emt 0:00:21]} Rcc8 {[%emt 0:01:44]} 29. e3 {[%emt 0:00:33]} Qd7 {[%emt 0:01:53]} 30. Kh2 {[%emt 0:01:08]} Qd6 {[%emt 0:01:40]} 31. Qc2 {[%emt 0:00:55]} Rcb8 {[%emt 0:06:58]} 32. Qg6 {[%emt 0:00:10]} Qe6 {[%emt 0:00:48]} 33. Be4 {[%emt 0:00:17]} Kg8 {[%emt 0:03:27]} 34. d5 {[%emt 0:01:52]} cxd5 {[%emt 0:00:50]} 35. Rc7 {[%emt 0:00:13]} 1-0

[Event "Elegant 1st Division League 2024"]
[Site "Dhaka"]
[Date "2024.07.16"]
[Round "6.7"]
[White "Salim Mohammed, Salim Al Amri"]
[Black "S M Sharon"]
[Result "1-0"]
[Annotator "RC"]
[ECO "A22"]
[WhiteElo "1928"]
[BlackElo "2047"]
[PlyCount "133"]
[EventDate "2024.07.10"]
[EventType "team-tourn"]
[EventCountry "BAN"]
[SourceTitle "playchess.com"]
[Source "ChessBase"]
[SourceQuality "1"]
[TimeControl "5400+30"]

1. c4 {[%emt 1:31:00]} e5 {[%emt 0:01:13]} 2. Nc3 {[%emt 0:00:00]} Nf6 {[%emt 0:00:34]} 3. Nf3 {[%emt 0:00:00]} d6 {[%emt 0:00:30]} 4. g3 {[%emt 0:00:00]} c6 {[%emt 0:00:26]} 5. Bg2 {[%emt 0:00:00]} Nbd7 {[%emt 0:00:15]} 6. O-O {[%emt 0:00:00]} Be7 {[%emt 0:00:01]} 7. d3 {[%emt 0:00:00]} Qc7 {[%emt 0:00:05]} 8. Bd2 {[%emt 0:00:00]} Nf8 {[%emt 0:10:07]} 9. b4 {[%emt 0:00:00]} Ng6 {[%emt 0:00:05]} 10. b5 {[%emt 0:00:00]} h5 {[%emt 0:01:45]} 11. h4 {[%emt 0:00:00]} Bd7 {[%emt 0:09:44]} 12. a4 {[%emt 0:00:00]} Ng4 {[%emt 0:04:38]} 13. Qb3 {[%emt 0:00:00]} c5 {[%emt 0:03:57]} 14. Nd5 {[%emt 0:00:00]} Qd8 {[%emt 0:00:32]} 15. b6 {[%emt 0:00:00]} axb6 {[%emt 0:01:55]} 16. Qxb6 {[%emt 0:00:00]} Qxb6 {[%emt 0:02:21]} 17. Nxb6 {[%emt 0:00:00]} Ra7 {[%emt 0:02:37]} 18. Rfb1 {[%emt 0:00:00]} Bc6 {[%emt 0:01:51]} 19. a5 {[%emt 0:00:00]} O-O {[%emt 0:00:34]} 20. Nh2 {[%emt 0:00:00]} Re8 {[%emt 0:03:41]} 21. Nxg4 {[%emt 0:00:00]} hxg4 {[%emt 0:00:03]} 22. Be4 {[%emt 0:00:00]} Bxe4 {[%emt 0:06:57]} 23. dxe4 {[%emt 0:00:00]} Nf8 {[%emt 0:01:18]} 24. Rb3 {[%emt 0:00:00]} Ne6 {[%emt 0:01:36]} 25. e3 {[%emt 0:00:00]} g5 {[%emt 0:01:49]} 26. h5 {[%emt 0:00:00]} Kg7 {[%emt 0:00:42]} 27. Kg2 {[%emt 0:00:00]} Kh6 {[%emt 0:07:40]} 28. Rab1 {[%emt 0:00:00]} Nc7 {[%emt 0:29:53]} 29. Nd5 {[%emt 0:00:00]} Nxd5 {[%emt 0:00:55]} 30. exd5 {[%emt 0:00:00]} Rea8 {[%emt 0:00:09]} 31. Rxb7 {[%emt 0:00:00]} Kxh5 {[%emt 0:02:52]} 32. R1b6 {[%emt 0:00:00]} f5 {[%emt 0:02:18]} 33. a6 {[%emt 0:00:00]} Bf8 {[%emt 0:02:24]} 34. Rxa7 {[%emt 0:00:00]} Rxa7 {[%emt 0:00:04]} 35. Rb8 {[%emt 0:03:44]} Bh6 {[%emt 0:01:38]} 36. Rb6 {[%emt 0:00:11]} Bf8 {[%emt 0:00:02]} 37. Ba5 {[%emt 0:00:14]} Kg6 {[%emt 0:00:29]} 38. Rc6 {[%emt 0:00:08]} f4 {[%emt 0:00:21]} 39. Bc7 {[%emt 0:01:53]} Ra8 {[%emt 0:00:25]} 40. e4 {[%emt 0:01:50]} Kf7 {[%emt 0:01:25]} 41. Bxd6 {[%emt 0:01:17]} Bxd6 {[%emt 0:00:26]} 42. Rxd6 {[%emt 0:00:11]} Ke7 {[%emt 0:00:40]} 43. Re6+ {[%emt 0:01:28]} Kd7 {[%emt 0:00:04]} 44. gxf4 {[%emt 0:00:31]} gxf4 {[%emt 0:00:19]} 45. Rg6 {[%emt 0:01:48]} Kc7 {[%emt 0:00:14]} 46. Rc6+ {[%emt 0:03:03]} Kd7 {[%emt 0:00:06]} 47. Kf1 {[%emt 0:00:13]} Rh8 {[%emt 0:00:16]} 48. Kg2 {[%emt 0:00:32]} g3 {[%emt 0:01:24]} 49. fxg3 {[%emt 0:01:03]} Rg8 {[%emt 0:00:04]} 50. a7 {[%emt 0:00:27]} Rxg3+ {[%emt 0:00:03]} 51. Kf2 {[%emt 0:00:41]} Ra3 {[%emt 0:00:02]} 52. Rh6 {[%emt 0:00:11]} Kc7 {[%emt 0:00:39]} 53. Rh7+ {[%emt 0:00:45]} Kb6 {[%emt 0:00:05]} 54. d6 {[%emt 0:00:22]} Kc6 {[%emt 0:00:33]} 55. d7 {[%emt 0:00:25]} Ra2+ {[%emt 0:01:24]} 56. Kf3 {[%emt 0:01:14]} Ra3+ {[%emt 0:00:01]} 57. Kg4 {[%emt 0:00:41]} Rg3+ {[%emt 0:00:03]} 58. Kf5 {[%emt 0:00:01]} Rg8 {[%emt 0:00:02]} 59. Kxe5 {[%emt 0:00:09]} Rf8 {[%emt 0:02:07]} 60. Rf7 {[%emt 0:01:42]} Rh8 {[%emt 0:01:33]} 61. Ke6 {[%emt 0:01:07]} Rd8 {[%emt 0:00:25]} 62. Rxf4 {[%emt 0:00:16]} Rh8 {[%emt 0:00:37]} 63. Ke7 {[%emt 0:00:14]} Kc7 {[%emt 0:00:30]} 64. e5 {[%emt 0:00:19]} Rh7+ {[%emt 0:00:23]} 65. Rf7 {[%emt 0:00:11]} Rh8 {[%emt 0:00:05]} 66. e6 {[%emt 0:00:07]} Rd8 {[%emt 0:00:59]} 67. Rf8 {[%emt 0:00:29]} 1-0